Cogmind - Beta 14 @@@ ROGUE MODE // 2024.10.17 @ 13:37:59 Player: Zane Result: Destroyed by D-53 Grenadier with Mini Grenade Launcher Performance ------------- Evolutions (0) 0 Regions Visited (4) 800 Robots Destroyed (18) 90 Value Destroyed (370) 370 Prototype IDs (0) 0 Alien Tech Used (0) 0 Bonus (-3) -3 TOTAL SCORE: 1257 Bonus ------- Follower Combat Kills 14 Friendly Fire -17 Cogmind --------- Core Integrity 0/250 Matter 300/300 Energy 100/100 System Corruption 0% Temperature Cool (0) Movement Walking (190) Ox1 Location -9/Mines Parts ------- > --- POWER (1) -------- (None) > --- PROPULSION (2) --- Aluminum Leg > --- UTILITY (2) ------ Medium Storage Unit Seismic Detector > --- WEAPON (2) ------- Beam Cannon Ripper > --- INVENTORY (10) --- Light Nuclear Core Aluminum Leg Aluminum Leg Aluminum Leg Improved Heat Sink Small Storage Unit Huge Storage Unit Hardened Light Armor Plating Grenade Launcher Mining Laser Peak State ------------ > --- POWER ------------ Light Nuclear Core > --- PROPULSION ------- Aluminum Leg Aluminum Leg > --- UTILITY ---------- Small Storage Unit Seismic Detector > --- WEAPON ----------- Beam Cannon Ripper > --- INVENTORY -------- Light Nuclear Core Aluminum Leg Aluminum Leg Aluminum Leg Improved Heat Sink Huge Storage Unit Grenade Launcher Mining Laser [Rating: 13] Favorites ----------- Power Light Nuclear Core Engine Light Ion Engine Power Core Light Nuclear Core Propulsion Aluminum Leg Treads Light Treads Leg Aluminum Leg Utility Seismic Detector Device Seismic Detector Storage Small Storage Unit Weapon Beam Cannon Energy Gun Medium Laser Energy Cannon Beam Cannon Ballistic Gun Assault Rifle Launcher Grenade Launcher Slashing Weapon Ripper Build | -11 -10 -10 -10 -9 ------- Run | Yrd Mat Min Exi Min Slots Evolved . | . . . . . Power . | . . . . . Propulsion . | . . . . . Utility . | . . . . . Weapon . | . . . . . Parts Attached 20 | 7 10 3 . . Power 3 | 1 2 . . . Engine 2 | 1 1 . . . Core 1 | . 1 . . . Reactor . | . . . . . Propulsion 4 | 2 2 . . . Treads 2 | 2 . . . . Leg 2 | . 2 . . . Wheel . | . . . . . Hover . | . . . . . Flight . | . . . . . Utility 7 | 2 3 2 . . Device 3 | 1 1 1 . . Storage 4 | 1 2 1 . . Processor . | . . . . . Hackware . | . . . . . Protection . | . . . . . Artifact . | . . . . . Weapon 6 | 2 3 1 . . Energy Gun 1 | 1 . . . . Energy Cannon 1 | . 1 . . . Ballistic Gun 2 | 1 1 . . . Ballistic Cannon . | . . . . . Launcher 1 | . 1 . . . Special Weapon . | . . . . . Impact Weapon . | . . . . . Slashing Weapon 1 | . . 1 . . Piercing Weapon . | . . . . . Special Melee Weapon . | . . . . . Unidentified Prototypes . | . . . . . Parts Lost 8 | . 6 . . 2 Power 2 | . 1 . . 1 Propulsion 3 | . 2 . . 1 Utility 1 | . 1 . . . Weapon 2 | . 2 . . . Highest Loss Streak 6 | . 6 . . 2 To Critical Strikes . | . . . . . Average Slot Usage (%) 97 | . 92 100 100 99 Engine 2 | . 6 . . . Core 11 | . 6 14 14 13 Treads 4 | . 12 . . . Leg 22 | . 13 28 28 28 Device 13 | . 12 14 14 14 Storage 14 | . 14 14 14 14 Energy Gun 2 | . 6 . . . Energy Cannon 11 | . 7 14 14 14 Ballistic Gun 2 | . 6 . . . Launcher 4 | . 6 8 . . Slashing Weapon 6 | . . 5 14 14 Peak Build Rating 13 | 7 12 13 13 13 Average Rating 10 | 5 8 12 13 12 On Entrance 9 | . 7 12 13 13 Naked Turns . | . . . . . Heaviest Build 22 | 13 17 22 22 22 Greatest Support 40 | 40 40 20 20 20 Greatest Overweight (x) 2 | . 2 1 1 1 Average Overweight (x) . | . . . 1 . Largest Inventory Capacity 25 | 8 25 10 10 10 Average Capacity 8 | 7 8 8 10 10 Most Carried 10 | 4 8 9 9 10 Average Carried 7 | 2 6 8 9 9 Final Capacity 10 | 8 8 10 10 10 Final Carried 10 | 4 8 9 9 10 Class Distribution -------------------- 75% | Scavenger-Mutant 24% | Mutant Dominant Class ---------------- Scavenger-Mutant | -10/Materials Scavenger-Mutant | -10/Mines Scavenger-Mutant | -10/Exiles Scavenger-Mutant | -9/Mines Resources | -11 -10 -10 -10 -9 ----------- Run | Yrd Mat Min Exi Min Matter Collected 494 | 289 152 53 . . Remotely . | . . . . . Salvage Created 538 | 122 354 41 . 21 Parts 42 | 10 20 7 . 5 Haulers Intercepted . | . . . . . Recyclers Shooed 1 | 1 . . . . Parts Field Recycled . | . . . . . Retrieved Matter . | . . . . . Parts Self-Destructed . | . . . . . Prevented . | . . . . . Kills | -11 -10 -10 -10 -9 ------- Run | Yrd Mat Min Exi Min Combat Hostiles Destroyed 11 | . 10 . . 1 Guns 8 | . 8 . . . Cannons 3 | . 2 . . 1 Classes Destroyed 5 | 2 2 1 . . Builder 1 | . . 1 . . Tunneler 5 | 3 . 1 . 1 Recycler 1 | 1 . . . . Swarmer 4 | . 3 . . 1 Grunt 7 | . 7 . . . Best Kill Streak 4 | 4 3 1 . 1 Combat Bots Only 3 | . 3 . . 1 Max Kills in Single Turn 2 | 1 2 1 . 1 Gunslinging 1 | . 1 . . . Exploded . | . . . . . Melee . | . . . . . Uniques/NPCs Destroyed . | . . . . . Combat | -11 -10 -10 -10 -9 -------- Run | Yrd Mat Min Exi Min Hostile Shots Fired 120 | . 101 . . 19 Missed 34 | . 29 . . 5 Damage Taken 1061 | . 836 . . 225 Core 250 | . 162 . . 88 Absorbed by Shields . | . . . . . Core Remaining (%) 100 | 100 . . . . Volleys Fired 58 | 8 43 1 . 6 Largest 2 | 2 2 1 . 1 Hottest 70 | 70 70 60 . 60 Shots Fired 97 | 16 74 1 . 6 Gun 84 | 16 68 . . . Cannon 13 | . 6 1 . 6 Launcher . | . . . . . Special . | . . . . . Kinetic 45 | 8 37 . . . Thermal 52 | 8 37 1 . 6 Explosive . | . . . . . Electromagnetic . | . . . . . Robot Hit Streak 8 | 3 8 1 . 1 Robot Miss Streak 5 | 1 5 . . 3 Penetration Max . | . . . . . Secondary Targets 2 | . 2 . . . Max Gunslinging Chain 1 | . 1 . . . Shots Hit Robots 63 | 10 49 2 . 2 Core Hits 29 | 6 19 2 . 2 Critical Kills . | . . . . . Critical Parts Destroyed . | . . . . . Critical Strikes 3 | 1 2 . . . Burn 3 | 1 2 . . . Melee Attacks 2 | . . 1 . 1 Impact . | . . . . . Slashing 2 | . . 1 . 1 Piercing . | . . . . . Sneak Attacks 2 | . . 1 . 1 Combat Hostiles . | . . . . . Follow-up Attacks . | . . . . . Damage Inflicted 1042 | 143 676 101 . 122 Guns 736 | 142 594 . . . Cannons 122 | . 69 18 . 35 Explosions . | . . . . . Melee 170 | . . 83 . 87 Ramming 14 | 1 13 . . . Kinetic 385 | 66 319 . . . Thermal 473 | 76 344 18 . 35 Explosive . | . . . . . Electromagnetic . | . . . . . Impact . | . . . . . Slashing 170 | . . 83 . 87 Piercing . | . . . . . Highest Corruption . | . . . . . Average Corruption . | . . . . . Corruption Purged . | . . . . . Corruption Blocked . | . . . . . Overload Shots . | . . . . . Overflow Damage . | . . . . . Projectiles . | . . . . . Explosions . | . . . . . Melee . | . . . . . Knockbacks . | . . . . . Impact . | . . . . . Kinetic . | . . . . . Secondary . | . . . . . Self-Inflicted Damage . | . . . . . Shots . | . . . . . Rammed 4 | 2 2 . . . Targets Rammed 8 | 2 6 . . . Kicked 4 | . 4 . . . Crushed . | . . . . . Highest Temperature 312 | 72 312 . . 144 Average Temperature 96 | 37 111 . . 74 Received Heat Transfer 408 | . 408 . . . Effects 1 | . 1 . . . Short Circuit 1 | . 1 . . . Siege Activations . | . . . . . Robots Corrupted . | . . . . . Combat Hostiles . | . . . . . Parts Fried . | . . . . . Impact Corruptions . | . . . . . Robots Melted . | . . . . . Combat Hostiles . | . . . . . Parts Melted . | . . . . . Heat Transferred 1517 | 296 1110 37 . 74 Parts Sabotaged . | . . . . . Parts Stolen . | . . . . . Parts Stripped . | . . . . . Power Chain Reactions . | . . . . . Alert | -11 -10 -10 -10 -9 ------- Run | Yrd Mat Min Exi Min Peak Influence 253 | 20 253 47 . 105 Initial 37 | . 13 37 . . Average 86 | 9 133 41 . 84 Maximum Alert Level 1 | . 1 . . . Low Security (%) 85 | 100 63 100 . 100 Level 1 14 | . 36 . . . Level 2 . | . . . . . Level 3 . | . . . . . Level 4 . | . . . . . Level 5 . | . . . . . High Security . | . . . . . Max Security . | . . . . . Squads Dispatched 2 | . 2 . . . Investigation 1 | . 1 . . . Extermination . | . . . . . Reinforcement 1 | . 1 . . . Assault . | . . . . . Garrison . | . . . . . Intercept . | . . . . . Searches Triggered . | . . . . . Construction Impeded . | . . . . . Haulers Reinforced . | . . . . . Active Scanning Responses . | . . . . . Cargo Convoy Interrupts . | . . . . . Stealth | -11 -10 -10 -10 -9 --------- Run | Yrd Mat Min Exi Min Distress Signals 1 | . 1 . . . Communications Jammed . | . . . . . Distress Signals . | . . . . . Times Spotted 27 | . 17 . . 10 Peak Tracking Total 17 | . 3 . . 17 Tactical Retreats 2 | . 2 . . . Traps | -11 -10 -10 -10 -9 ------- Run | Yrd Mat Min Exi Min Traps Triggered 1 | . 1 . . . Indirectly . | . . . . . Trap Hack Attempts . | . . . . . Triggered . | . . . . . Disarmed . | . . . . . Reprogrammed . | . . . . . Reused . | . . . . . Traps Extracted . | . . . . . Installed . | . . . . . Triggered . | . . . . . Machines | -11 -10 -10 -10 -9 ---------- Run | Yrd Mat Min Exi Min Machines Disabled 2 | . . . . 2 Max in Single Turn . | . . . . . Machines Repaired . | . . . . . Machines Dismantled . | . . . . . Machines Sabotaged . | . . . . . Overloaded Fab Kills . | . . . . . Hacking | -11 -10 -10 -10 -9 --------- Run | Yrd Mat Min Exi Min Machines Accessed . | . . . . . Terminals . | . . . . . Fabricators . | . . . . . Repair Stations . | . . . . . Recycling Units . | . . . . . Scanalyzers . | . . . . . Garrison Access . | . . . . . Total Hacks . | . . . . . Successful . | . . . . . Failed . | . . . . . Catastrophic . | . . . . . Database Lockouts . | . . . . . Manual . | . . . . . Terminals . | . . . . . Fabricators . | . . . . . Repair Stations . | . . . . . Recycling Units . | . . . . . Scanalyzers . | . . . . . Garrison Access . | . . . . . Terminal Hacks . | . . . . . Fabricator Hacks . | . . . . . Repair Station Hacks . | . . . . . Recycling Unit Hacks . | . . . . . Scanalyzer . | . . . . . Garrison Access Hacks . | . . . . . Unauthorized Hacks . | . . . . . Terminals . | . . . . . Fabricators . | . . . . . Repair Stations . | . . . . . Recycling Units . | . . . . . Scanalyzers . | . . . . . Garrison Access . | . . . . . Data Cores Recovered . | . . . . . Used . | . . . . . Hacking Detections . | . . . . . Full Trace Events . | . . . . . Feedback Events . | . . . . . Feedback Blocked . | . . . . . Robot Schematics Acquired . | . . . . . Robots Built . | . . . . . Authchips . | . . . . . Time . | . . . . . Total Robot Build Rating . | . . . . . Part Schematics Acquired . | . . . . . Parts Built . | . . . . . Authchips . | . . . . . Time . | . . . . . Total Part Build Rating . | . . . . . Parts Repaired . | . . . . . Time . | . . . . . Parts Recycled . | . . . . . Recycled Matter . | . . . . . Retrieved Matter . | . . . . . Retrieved Components . | . . . . . Parts Scanalyzed . | . . . . . Part Schematics Acquired . | . . . . . Parts Damaged . | . . . . . Bothacking | -11 -10 -10 -10 -9 ------------ Run | Yrd Mat Min Exi Min Used RIF Installer . | . . . . . Robots Hacked . | . . . . . Non-combat . | . . . . . Combat . | . . . . . Robot Hacks Applied . | . . . . . Relay Couplers Released . | . . . . . Fabnet Peak Effective % . | . . . . . Robots Rewired . | . . . . . Allies Hacked . | . . . . . Hacks Repelled . | . . . . . Allies | -11 -10 -10 -10 -9 -------- Run | Yrd Mat Min Exi Min Total Allies 3 | . . 3 . . Largest Group 3 | . . 3 2 2 Highest-Rated Group 40 | . . 40 24 24 Highest-Rated Ally 16 | . . 16 16 16 Total Orders . | . . . . . Ally Attacks 17 | . . . . 17 Total Damage 121 | . . . . 121 Kills 3 | . . . . 3 Allies Corrupted . | . . . . . Allies Melted . | . . . . . Intel | -11 -10 -10 -10 -9 ------- Run | Yrd Mat Min Exi Min Robot Analysis Total . | . . . . . Derelict Logs Recovered 2 | . . 2 . . Drone Launches . | . . . . . Drone Recoveries . | . . . . . Exploration | -11 -10 -10 -10 -9 ------------- Run | Yrd Mat Min Exi Min Turns Passed 1659 | 129 561 366 240 363 Spaces Moved 928 | 56 300 266 127 179 Core 12 | 1 11 . . . Treads 141 | 55 86 . . . Legs 775 | . 203 266 127 179 Wheels . | . . . . . Hover . | . . . . . Flight . | . . . . . Fastest Speed 50 | 50 100 120 190 120 Average Speed 152 | 158 131 132 190 189 Slowest Speed 190 | 160 190 190 190 190 Overloaded Moves . | . . . . . Propulsion Burnouts . | . . . . . Robots Hopped . | . . . . . Cave-ins Triggered . | . . . . . Exploration Rate (%) 45 | 5 59 61 50 51 Regions Visited 4 Branch Regions 3 Pre-discovered Areas . | . . . . . Known Exits Taken 1 | . . 1 . . Unknown Exits Taken 3 | 1 1 . 1 . Scrap Searched 1 | . . . . 1 Spaces Dug . | . . . . . Terrain Destroyed . | . . . . . Melee . | . . . . . Projectile . | . . . . . AOE . | . . . . . Terrain Rammed . | . . . . . Walls Destroyed . | . . . . . Machines Disabled . | . . . . . Actions | -11 -10 -10 -10 -9 --------- Run | Yrd Mat Min Exi Min Total 1062 | 76 388 277 126 195 Wait 26 | . 18 . . 8 Move 924 | 55 299 265 126 179 Hop . | . . . . . Pick Up 16 | 4 8 3 . 1 Fast Attach 15 | 7 7 1 . . Attach . | . . . . . Detach . | . . . . . Swap 5 | . 3 2 . . Drop 8 | . 4 4 . . Fire 58 | 8 43 1 . 6 Melee 2 | . . 1 . 1 Ram . | . . . . . Kick 4 | . 4 . . . Crush 4 | 2 2 . . . Escape Stasis . | . . . . . Rewire . | . . . . . Trap . | . . . . . Miscellaneous . | . . . . . Route ------- -11/Scrapyard -10/Materials (discovered 2 exits: [*Mat] / [*Min]) -10/Mines (discovered 3 exits: [*Mat] / *Exi / Sub) -10/Exiles -9/Mines History --------- Turn | Location | Event 10 | -11/Scrapyard | Discovered new exit (range 16) 130 | -11/Scrapyard | Entered Materials 302 | -10/Materials | Build established: Mutant 389 | -10/Materials | Core integrity fell below 50% 427 | -10/Materials | Lost 6 parts (1p2n1u2w) 552 | -10/Materials | Discovered new exit (range 12) 685 | -10/Materials | Discovered new exit (range 6) 691 | -10/Materials | Entered Mines 707 | -10/Mines | Build established: Scavenger-Mutant 708 | -10/Mines | Identified exit to Subcaves 785 | -10/Mines | Discovered new exit (range 6) 816 | -10/Mines | Identified exit to Exiles 817 | -10/Mines | Assisted by bots powering up and referring to "LRC-V3" 915 | -10/Mines | A weapon hastily lodged in a ceiling crevice suddenly fell to the ground 1047 | -10/Mines | Deemed a non-threat by the Exiles lab entrance 1057 | -10/Mines | Entered Exiles 1057 | -10/Exiles | Found Exiles lab abandoned 1057 | -10/Exiles | Accompanied by 2 allies 1280 | -10/Exiles | Discovered new exit (range 10) 1297 | -10/Exiles | Entered Mines 1297 | -9/Mines | Accompanied by 2 allies 1643 | -9/Mines | Assembled infested the area 1648 | -9/Mines | Assisted by a Guerilla fighting off Assembled 1660 | -9/Mines | Destroyed by D-53 Grenadier with Mini Grenade Launcher Last Messages --------------- 01492_ K-01 Serf collects debris. 01512_ Sneak attack on T-07 Excavator. 01512_ T-07 Excavator destroyed. 01554_ K-01 Serf collects debris. 01643_ ALERT: Infestation in the mines, dispatching Demolisher response squad. 01648_ A derelict emerges from the shadows: "You need to get out of here! I've been tracking a group of Assembled to figure out where they're coming from, and they're closing on this area, come on!" 01654_ ZG-I05(h): "I'll hold them off! Go on ahead or try to find another way!" 01654_ HV Slug penetrates Laser Drill. 01654_ Laser Drill disabled. 01656_ HV Slug penetrates Laser Drill. 01656_ D-53 Grenadier knocked back. 01658_ ZG-I05(h) destroyed. 01658_ Lgt. Nuclear Core destroyed. 01660_ Aluminum Leg destroyed. Map ----- +----------------------------------------------------+ | ??????????????????????????????????????######### | | ??????????????????????????????????????????????## | | ???????????????????????????????????????????????### | | ?????????????????????????????????????????????????? | | ?????????????????????????????????????????????????? | | ?????????????????????????????????????????????????? | | ?????????????????????????????????????????????????? | | ?????????????????????????????????????????????????? | | ?????????????????????????????????????????????????? | | ?????????????????????????????????????????????????? | | ?????????????????????????????????????????????????? | | ?????????????????????????????????????????????????? | | ???????????????????#?????????????????????????????? | | ???????????????????#%????????????????????????????? | | ???????????????????# ##??????????????????????????? | | ???????????????????# ??????????????????????????? | | ???????????????????# ######????????????????????? | | ????????????????????# ## ########?????????????? | | ????????????????????##dd #?????????????? | | ???????????????????## #?????????????? | | ???????????????????# ###### #?????????????? | | ???????????????????# ##???# ####??????????? | | ???????????????????# !% #???# ####???????? | | ??????????????????## r ! #???#### #???????? | | ?????????????###### #??????# #???????? | | ????????????# @ #??????#### #???????? | | ??????????????####### ##?????????# #######?? | | ????????????????????# #?????????# ### | | ????????????????????## #?????????# ##### | | ?????????????????????# ######?????????# #?# | | ????????????# ######## #??????????????####### ### | | ?????? g #????????????????????# | | ?????????????############????????????????????#### | | ????????????????????????????????????????????????## | | ?????????????????????????????????????????????????# | | ?????????????????????????????????????????????????? | | | | | | | | | | | | | | | | | | | | | | | | | | | | | +----------------------------------------------------+ Best States ------------- Heat Dissipation 39 Energy Generation 14 Energy Capacity 250 Matter Stores 300 Matter Capacity 300 Sight Range 16 Terrain Scan Density 10 Evasion (%) 55 Recoil Reduction 2 Item Schematics ----------------- None Robot Schematics ------------------ None Fabricated ------------ Nothing Alien Tech Used ----------------- None Achievements -------------- None Challenges ------------ None Game ------ Seed ShadeNullBarrier Manual? 0 Play Time 00:13:37 Cumulative 20.2 hours Start 2024.10.11 @ 22:05:23 End 2024.10.17 @ 13:37:59 Sessions 3 Manual Loads 0 Difficulty Rogue Special Mode None Game No. 27 Rogue 27 Adventurer 0 Explorer 0 Win Type - Total 0 Types 0/0/0/0/0/0/0/0/0 Lore% 24 Gallery% 27 Achievement% 23 Wizard Run 0 Options --------- Layout 1 ASCII 0 Keyboard 0 Movement Numpad Keybinds 0 Fullscreen 1 Font 24/Smallcaps Map View 50x35 Zoom Use 0% Tactical HUD 1 Map Filters NONE Filters NONE Steam 1 RUN: 07502b24-4774-4b50-9f9c-e2e440647a51